bitfinex/quotes_ETHUSD_20240719
["timestamp","ask_amount","ask_price","bid_price","bid_amount"]
[1721403885765,2.88342,3468.1,3467.6,0.80511]
[1721403886067,2.88342,3468.1,3467.7,0.02999418]
[1721403887078,2.88353,3468.0,3467.7,0.02999418]
[1721403887282,2.88316,3468.5,3467.7,0.02999418]
[1721403887919,2.88316,3468.5,3467.8,5.7673]
[1721403888080,2.88316,3468.5,3467.8,6.42754042]
[1721403888281,2.88316,3468.5,3467.9,0.02998395]
[1721403888644,2.88297,3468.7,3467.9,0.02998395]
[1721403888845,3.0,3468.6,3467.9,0.02998395]
[1721403889297,5.88301,3468.6,3467.9,0.02998395]
[1721403889875,2.88314,3468.5,3467.9,0.02998395]
[1721403890141,3.0,3468.6,3467.9,0.02998395]
[1721403890494,5.883,3468.6,3467.9,0.02998395]
[1721403890944,3.0,3468.6,3467.9,0.02998395]
[1721403891232,3.0,3468.7,3467.9,0.02998395]
[1721403893194,5.88292,3468.7,3467.9,0.02998395]
[1721403893696,3.0,3468.7,3467.9,0.02998395]
[1721403894007,2.88289,3468.8,3467.9,0.02998395]
[1721403894207,3.0,3468.7,3467.9,0.02998395]
[1721403894436,5.88292,3468.7,3467.9,0.02998395]
[1721403894811,3.0,3468.7,3467.9,0.02998395]
[1721403894996,3.0,3468.9,3467.9,0.02998395]
[1721403895199,2.88285,3468.8,3467.9,0.02998395]
[1721403895540,2.88306,3468.6,3467.9,0.02998395]
[1721403895832,3.0,3468.5,3467.9,0.02998395]
[1721403895995,3.0,3468.7,3467.9,0.02998395]
[1721403896194,2.88306,3468.6,3467.9,0.02998395]
[1721403896417,3.0,3468.5,3467.9,0.02998395]
[1721403897601,5.8831,3468.5,3467.9,0.02998395]
[1721403897805,2.88324,3468.4,3467.9,0.02998395]
[1721403898035,2.88328,3468.3,3467.9,0.02998395]
[1721403898240,2.88328,3468.3,3467.8,5.7673]
[1721403899140,5.88309,3468.5,3467.8,5.7673]
[1721403899511,3.0,3468.5,3467.8,5.7673]
[1721403899715,3.0,3468.6,3467.9,0.02971023]
[1721403900118,3.0,3468.6,3467.8,5.7673]
[1721403900314,3.0,3468.6,3468.1,2.4039]
[1721403900845,3.0,3468.6,3468.2,0.02973614]
[1721403901544,3.0,3468.7,3468.2,0.02973614]
[1721403901842,0.89862842,3468.9,3468.2,0.02973614]
[1721403902047,0.89862842,3469.0,3468.2,0.02973614]
[1721403902220,3.78087842,3469.6,3468.3,8.89311361]
[1721403902402,0.89862842,3469.6,3468.6,2.88298]
[1721403902607,0.45220549,3469.7,3468.7,2.3502]
[1721403902827,0.242553,3470.0,3468.8,5.7657]
[1721403903026,0.242553,3470.0,3468.9,1.388169]
[1721403903302,0.242553,3470.0,3468.9,0.02960667]
[1721403903505,2.88226,3469.5,3468.9,0.02960667]
[1721403903947,2.88275,3468.9,3468.8,5.7657]
[1721403904126,5.7655,3468.9,3468.8,5.7657]
[1721403904319,0.89862842,3469.2,3468.8,5.7950199]
[1721403904519,2.88268,3469.0,3468.8,5.7657]
[1721403904743,2.88268,3469.0,3468.9,0.02931479]
[1721403905106,2.8822,3469.6,3468.8,5.7657]
[1721403905337,2.88218,3469.6,3468.8,5.7657]
[1721403905522,0.89862842,3469.9,3468.8,5.7657]
[1721403905730,2.88232,3469.5,3468.8,5.7657]
[1721403905912,2.8825,3469.3,3468.8,5.7657]
[1721403906452,5.57305,3469.8,3468.8,5.7657]
[1721403906626,2.88223,3469.6,3468.8,5.7657]
[1721403906823,2.691,3469.8,3468.8,5.7657]
[1721403907026,2.8826,3469.1,3468.8,5.7657]
[1721403907359,2.88253,3469.2,3468.8,5.7657]
[1721403907639,2.88257,3469.2,3468.8,5.7657]
[1721403907855,2.88275,3469.0,3468.8,5.7657]
[1721403908209,5.7655,3468.9,3468.8,5.7657]
[1721403908508,8.64825,3468.9,3468.8,5.7657]
[1721403908708,14.62724438,3468.9,3468.8,5.7657]
[1721403908924,15.52564743,3468.9,3468.8,5.7657]
[1721403909127,15.52564712,3468.9,3468.8,5.7657]
[1721403909326,2.8836,3467.9,3467.1,2.4501]
[1721403909653,2.8836,3467.9,3467.2,0.02733295]
[1721403909853,2.88343,3468.1,3467.2,0.02733295]
[1721403910144,2.88337,3468.2,3467.1,2.4501]
[1721403910332,2.88321,3468.4,3467.3,0.02732784]
[1721403910651,2.88327,3468.3,3467.3,0.25351052]
[1721403910807,2.88334,3468.2,3467.3,0.25351052]
[1721403911008,2.88334,3468.2,3467.4,0.02747072]
[1721403911566,2.88342,3468.1,3467.4,0.02747072]
[1721403911709,2.88317,3468.4,3467.4,0.02747072]
[1721403912035,2.88329,3468.3,3467.4,0.02747072]
[1721403912357,2.88335,3468.2,3467.4,0.02747072]
[1721403912508,2.88317,3468.4,3467.4,0.08514333]
[1721403912714,3.89843731,3468.9,3467.4,0.02747072]
[1721403912715,2.88327,3468.3,3467.4,0.02747072]
[1721403913026,2.88334,3468.2,3467.4,0.02747072]
[1721403914510,2.88318,3468.4,3467.4,0.02747072]
[1721403914715,2.88318,3468.4,3467.4,0.08514335]
[1721403915534,2.8831,3468.5,3467.4,0.08514335]
[1721403915856,2.88317,3468.4,3467.6,2.2718]
[1721403916336,2.883,3468.6,3467.7,0.02742728]
[1721403916515,2.88309,3468.5,3467.7,0.02742728]
[1721403917113,2.88318,3468.4,3467.7,0.02742728]
[1721403917443,2.88326,3468.3,3467.7,0.02742728]
[1721403917811,2.88326,3468.3,3467.7,0.28957735]
[1721403918350,2.88314,3468.5,3467.7,0.28957735]
[1721403919261,2.88301,3468.6,3467.7,0.28957735]
[1721403919419,2.88348,3468.1,3467.7,0.02742728]
[1721403919762,2.88348,3468.1,3467.6,2.2718]
[1721403920119,2.8835,3468.0,3467.6,2.2718]
[1721403920824,2.88364,3467.9,3467.6,2.2718]
[1721403921023,2.88367,3467.8,3467.1,2.3574]
[1721403921258,2.88367,3467.8,3467.2,0.23574]
[1721403921432,2.88367,3467.8,3467.3,0.02762755]
[1721403921755,2.88392,3467.5,3467.1,2.3574]
[1721403922167,2.88379,3467.7,3467.1,2.3574]
[1721403922367,2.884,3467.4,3467.1,2.3574]
[1721403922822,2.88414,3467.3,3466.5,2.3823]
[1721403923017,2.88414,3467.3,3466.6,0.99889335]
[1721403923229,2.88414,3467.3,3466.5,2.3823]
[1721403923431,0.89843731,3467.4,3466.6,0.02766335]
[1721403923665,2.88434,3467.0,3466.5,2.3823]
[1721403924366,2.88448,3466.9,3466.5,2.3823]
[1721403924821,3.78291731,3466.9,3466.5,2.3823]
[1721403925178,2.88459,3466.7,3466.0,2.3823]
[1721403925475,0.89843731,3466.9,3466.0,2.3823]
[1721403925476,2.88469,3466.6,3466.1,0.23823]
[1721403925761,2.88469,3466.6,3466.1,0.26591893]
[1721403925960,0.89843731,3466.7,3466.1,0.26591893]
[1721403926164,0.89843731,3466.8,3466.1,0.26591893]
[1721403926388,0.89843731,3466.9,3466.2,0.26482189]
[1721403926694,0.89843731,3466.9,3466.3,0.0276787]
[1721403927851,4.08226642,3467.0,3466.3,0.0276787]
[1721403927852,0.89843731,3466.8,3466.3,0.0276787]
[1721403928149,0.89843731,3466.8,3466.2,0.26482189]
[1721403928354,0.89843731,3466.8,3466.0,2.3823]
[1721403928355,2.88456,3466.8,3466.0,2.3823]
[1721403928557,2.88456,3466.8,3466.3,0.0276787]
[1721403928847,2.88456,3466.8,3466.0,2.3823]
[1721403929068,3.78290731,3466.9,3466.1,0.02768893]
[1721403929479,2.88452,3466.8,3466.1,0.02768893]
[1721403929655,2.88459,3466.7,3466.1,0.26868782]
[1721403930079,2.8845,3466.8,3466.1,0.26868782]
[1721403930418,2.88459,3466.7,3466.1,0.24099889]
[1721403931117,2.88459,3466.7,3466.2,0.02794625]
[1721403931482,2.88459,3466.7,3466.0,2.3823]
[1721403931677,2.88459,3466.7,3466.0,2.62053]
[1721403931883,2.88459,3466.7,3466.1,0.02824381]
[1721403932918,2.88467,3466.6,3466.1,0.02824381]
[1721403933127,2.88443,3466.9,3466.1,0.02824381]
[1721403933128,2.88499,3466.3,3466.1,0.02824381]
[1721403933278,2.885,3466.2,3466.1,0.02824381]
[1721403933784,2.885,3466.2,3465.5,2.2769]
[1721403934098,2.88509,3466.1,3465.6,0.0282694]
[1721403934298,2.88522,3466.0,3465.6,0.0282694]
[1721403934619,2.88532,3465.9,3465.6,0.0282694]
[1721403935015,2.88535,3465.8,3465.6,0.0282694]
[1721403935324,2.88535,3465.8,3465.5,2.2769]
[1721403935626,2.88526,3465.9,3465.5,2.2769]
[1721403935829,2.88534,3465.8,3465.6,0.0274234]
[1721403936128,2.8853,3465.9,3465.6,0.0274234]
[1721403936325,2.88535,3465.8,3465.6,0.0274234]
[1721403936482,2.88541,3465.7,3465.6,0.0274234]
[1721403936686,2.88537,3465.8,3465.6,0.0274234]
[1721403937019,2.88517,3466.0,3465.0,2.2797]
[1721403937322,2.88528,3465.9,3465.1,1.23027]
[1721403937503,2.88528,3465.9,3465.1,1.257719]
[1721403937731,2.88534,3465.8,3465.1,1.257719]
[1721403938410,3.78310731,3466.6,3465.6,2.693]
[1721403938598,2.8845,3466.8,3465.8,2.2501]
[1721403938800,1.49865908,3467.2,3465.8,2.2501]
[1721403938801,3.78282731,3467.0,3465.9,0.08510382]
[1721403939043,2.88439,3467.0,3465.9,0.08510382]
[1721403939210,2.88439,3467.0,3466.0,2.95345038]
[1721403939415,2.88447,3466.9,3466.1,0.02739781]
[1721403939612,2.88427,3467.1,3466.1,0.02739781]
[1721403939936,0.89843731,3467.2,3466.1,0.02739781]
[1721403940147,2.88475,3466.5,3466.1,0.02739781]
[1721403940440,2.88475,3466.5,3465.8,2.2501]
[1721403940633,2.88475,3466.5,3465.9,0.52124]
[1721403940839,2.88498,3466.3,3465.8,2.2501]
[1721403941027,2.88475,3466.5,3465.8,2.2501]
[1721403941225,2.88444,3466.9,3465.9,0.02737095]
[1721403941431,4.0842649,3467.3,3466.1,2.3766]
[1721403941631,2.88415,3467.3,3466.1,2.3766]
[1721403941848,2.884,3467.4,3466.2,0.53701935]
[1721403942002,0.89843731,3467.9,3466.8,2.693]
[1721403942198,2.88357,3468.0,3466.9,2.3766]
[1721403942443,2.88357,3468.0,3466.9,2.40388645]
[1721403942747,2.88392,3467.5,3466.9,2.40388645]
[1721403942898,2.88396,3467.5,3466.9,2.40388645]
[1721403943094,2.88374,3467.8,3466.9,2.64427509]
[1721403943095,2.88378,3467.7,3466.9,2.64427509]
[1721403943534,2.88351,3468.0,3467.0,0.05768198]
[1721403943742,2.88333,3468.3,3467.2,2.693]
[1721403944037,2.88333,3468.3,3467.3,2.48931037]
[1721403944616,2.88335,3468.2,3467.3,2.48931037]
[1721403944845,2.88335,3468.2,3467.4,0.51823104]
[1721403945175,4.68181235,3468.9,3467.4,0.51823104]
[1721403945176,2.88327,3468.3,3467.5,0.02710015]
[1721403945562,2.88337,3468.2,3467.5,0.02710015]
[1721403945877,0.89843731,3468.5,3467.5,0.02710015]
[1721403946036,2.88357,3468.0,3467.5,0.02710015]
[1721403946235,0.89843731,3468.1,3466.8,2.3062]
[1721403946476,4.08124642,3468.3,3466.2,0.50969709]
[1721403946477,2.88422,3467.2,3466.9,0.02620977]
[1721403946775,0.89843731,3467.6,3466.3,2.3062]
[1721403946977,2.88439,3467.0,3466.3,2.3062]
[1721403947290,2.88439,3467.0,3466.3,3.32078971]
[1721403947452,2.8841,3467.3,3466.3,3.32078971]
[1721403947651,2.88394,3467.5,3466.3,3.32078971]
[1721403947856,3.78219731,3467.7,3466.5,2.693]
[1721403948050,2.884,3467.4,3466.5,2.693]
[1721403948249,2.88376,3467.7,3466.6,0.60137897]
[1721403948452,3.89843731,3467.8,3466.6,0.60137897]
[1721403948672,3.78182731,3468.2,3466.9,5.5774]
[1721403948901,2.88339,3468.2,3467.0,2.4532]
[1721403949257,1.49950252,3468.6,3467.0,2.4532]
[1721403949258,2.88351,3468.0,3467.0,2.4532]
[1721403949451,2.8836,3467.9,3467.1,0.51462]
[1721403949776,2.88275727,3467.9,3467.1,0.51462]
[1721403950357,2.88367,3467.8,3467.1,0.51462]
[1721403950552,0.89843731,3468.2,3467.0,2.4532]
[1721403950766,2.884,3467.4,3466.4,2.2948]
[1721403951052,2.88409,3467.3,3466.4,2.2948]
[1721403951455,2.88434,3467.0,3466.4,2.2948]
[1721403951887,2.88458,3466.7,3466.4,2.2948]
[1721403952086,2.88443,3466.9,3466.4,2.2948]
[1721403952302,2.88426,3467.1,3466.4,2.52428]
[1721403952303,2.88425,3467.1,3466.4,2.52428]
[1721403952693,2.88436,3467.0,3466.4,2.52428]
[1721403952997,0.89843731,3467.2,3466.4,2.52428]
[1721403953368,0.89843731,3467.1,3466.5,0.02617208]
[1721403953674,0.89843731,3467.0,3466.5,0.02617208]
[1721403953877,0.89843731,3467.0,3466.4,2.2948]
[1721403954179,0.89843731,3467.1,3466.5,0.22948]
[1721403954383,0.89843731,3467.3,3466.5,0.22948]
[1721403954561,4.08184642,3467.5,3466.6,0.02616509]
[1721403954562,3.78243731,3467.4,3466.6,0.02616509]
[1721403954762,0.89843731,3467.4,3466.6,0.02616509]
[1721403955008,0.89843731,3467.5,3466.6,0.08385068]
[1721403955316,1.49951953,3467.8,3466.9,2.693]
[1721403955317,0.89843731,3467.8,3466.9,2.693]
[1721403955466,0.89843731,3468.1,3466.9,2.693]
[1721403955804,0.89843731,3468.1,3467.0,5.4052015]
[1721403956109,0.89843731,3468.2,3467.0,2.5209315]
[1721403956410,2.88351,3468.0,3467.0,2.5209315]
[1721403956586,0.89843731,3468.1,3467.0,2.5209315]
[1721403956587,3.78186731,3468.1,3467.1,0.52139315]
[1721403956791,2.88354,3468.0,3467.1,0.52139315]
[1721403957021,2.88372,3467.8,3467.2,0.02612127]
[1721403957309,1.49951953,3468.3,3467.2,0.02612127]
[1721403957310,3.78179731,3468.2,3467.2,0.02612127]
[1721403957806,3.78186731,3468.1,3467.2,0.02612127]
[1721403958011,3.78186731,3468.1,3467.3,0.30423144]
[1721403958192,0.89843731,3468.1,3467.3,0.30423144]
[1721403958510,0.89843731,3468.2,3467.5,2.2688]
[1721403958667,2.88334,3468.2,3467.6,0.02598646]
[1721403959009,0.89843731,3468.2,3467.6,0.02598646]
[1721403959207,2.88369,3467.8,3467.6,0.02598646]
[1721403959366,2.88375,3467.7,3467.0,2.2688]
[1721403959978,2.88402,3467.4,3467.0,2.2688]
[1721403960178,2.88384,3467.6,3467.0,2.2688]
[1721403960585,2.88404,3467.4,3467.0,2.2688]
[1721403961666,2.88384,3467.6,3467.0,2.2688]
[1721403962310,0.89843731,3467.7,3467.1,0.22688]
[1721403962477,0.89843731,3467.8,3467.1,0.22688]
[1721403962687,3.78210731,3467.8,3467.1,0.22688]
[1721403962890,0.89843731,3467.8,3467.1,0.22688]
[1721403963217,2.88399,3467.5,3467.0,2.2688]
[1721403963380,0.89843731,3467.6,3467.0,2.2688]
[1721403963567,1.35066816,3467.7,3467.0,2.2688]
[1721403963771,1.19791642,3467.9,3467.0,2.2688]
[1721403963772,0.89843731,3467.9,3467.1,2.88425]
[1721403963995,0.89843731,3468.2,3467.4,2.4348]
[1721403964200,0.89843731,3468.3,3467.5,0.801189]
[1721403964654,0.89843731,3468.4,3467.5,0.801189]
[1721403964805,0.89843731,3468.5,3467.8,2.88367]
[1721403965002,0.89843731,3468.7,3468.2,2.4348]
[1721403965203,7.49,3469.2,3468.2,2.4348]
[1721403965204,0.89843731,3469.2,3468.2,2.4348]
[1721403965441,0.89843731,3469.2,3468.3,0.51278]
[1721403965750,0.89843731,3469.4,3468.3,0.51278]
[1721403965925,0.89843731,3469.3,3468.3,0.51278]
[1721403966127,0.89843731,3469.4,3468.3,0.51278]
[1721403966333,2.88248,3469.3,3468.3,0.51278]
[1721403966535,2.88248,3469.3,3468.4,0.564058]
[1721403966536,0.89843731,3469.3,3468.4,0.564058]
[1721403966707,2.88264,3469.1,3468.3,0.51278]
[1721403966900,1.19791642,3469.3,3467.7,2.4348]
[1721403966901,0.89843731,3469.0,3467.7,2.4348]
[1721403967116,2.88316,3468.5,3467.7,2.4348]
[1721403967610,2.88334,3468.2,3467.7,2.4348]
[1721403968341,3.78192731,3468.1,3467.7,2.4348]
[1721403968639,0.89843731,3468.2,3467.7,2.4348]
[1721403968840,0.89843731,3468.3,3467.7,2.4348]
[1721403969152,3.78166731,3468.4,3467.7,2.4348]
[1721403969316,0.89843731,3468.4,3467.7,2.4348]
[1721403969521,0.89843731,3468.3,3467.7,2.4348]
[1721403969722,2.88344,3468.1,3467.7,2.4348]
[1721403970231,2.88356,3468.0,3467.3,2.693]
[1721403970547,2.88392,3467.5,3467.2,2.4449]
[1721403971848,2.88401,3467.4,3466.6,2.4449]
[1721403972419,2.88447,3466.9,3465.9,2.4449]
[1721403972949,2.88453,3466.8,3465.9,2.4449]
[1721403973246,2.88453,3466.8,3466.0,0.24449]
[1721403973447,0.89843731,3466.8,3465.9,2.4449]
[1721403973650,2.88468,3466.6,3465.9,2.4449]
[1721403973872,0.89843731,3466.7,3465.9,2.4449]
[1721403974158,3.78287731,3466.9,3465.9,2.4449]
[1721403974322,2.88444,3466.9,3465.9,2.4449]
[1721403974645,2.8845,3466.8,3465.9,2.4449]
[1721403974953,2.88442,3466.9,3466.0,0.24449]
[1721403975135,3.78285731,3466.9,3466.0,0.24449]
[1721403975455,0.89843731,3466.8,3466.0,0.24449]
[1721403975758,0.89843731,3466.9,3466.0,0.24449]
[1721403975922,0.89843731,3467.0,3466.1,0.557464]
[1721403976108,3.78269731,3467.1,3466.0,0.24449]
[1721403976312,0.89843731,3467.0,3466.0,0.24449]
[1721403976515,0.89843731,3467.1,3466.0,0.24449]
[1721403976756,3.89843731,3467.2,3466.0,0.24449]
[1721403977049,3.78269731,3467.1,3466.0,0.24449]
[1721403977255,2.88434,3467.0,3466.1,0.268939]
[1721403977460,3.78277731,3467.0,3466.1,0.268939]
[1721403977666,2.88434,3467.0,3466.1,0.268939]
[1721403977820,3.78277731,3467.0,3466.1,0.268939]
[1721403978159,0.89843731,3467.0,3466.1,0.268939]
[1721403978313,4.08208642,3467.2,3466.1,0.268939]
[1721403978314,0.89843731,3467.2,3466.1,0.268939]
[1721403978521,0.89843731,3467.4,3466.6,2.8846]
[1721403978859,2.88343,3468.1,3466.8,2.88444]
[1721403978860,0.89843731,3467.8,3466.8,2.88444]
[1721403979067,0.89843731,3467.9,3466.9,2.8844]
[1721403979355,3.78194731,3468.0,3467.0,2.72844]
[1721403979514,1.19791642,3468.1,3467.0,2.44]
[1721403979515,0.89843731,3467.9,3467.0,2.44]
[1721403979721,2.88391,3467.6,3467.0,2.44]
[1721403980115,2.88393,3467.5,3467.0,2.44]
[1721403980339,0.89843731,3467.5,3467.0,2.44]
[1721403980587,4.08167642,3467.7,3467.0,2.44]
[1721403980588,0.89843731,3467.7,3467.0,2.44]
[1721403980793,0.89843731,3467.6,3466.4,2.3908]
[1721403981068,0.89843731,3467.5,3466.4,2.3908]
[1721403981270,2.88425,3467.1,3466.4,2.3908]
[1721403981491,2.8845,3466.8,3466.4,2.3908]
[1721403981631,2.8845,3466.8,3466.1,0.268939]
[1721403981833,3.78293731,3466.8,3466.1,0.268939]
[1721403982273,2.8845,3466.8,3466.1,0.268939]
[1721403982470,2.8845,3466.8,3466.2,0.03167489]
[1721403982989,2.8845,3466.8,3466.1,0.268939]
[1721403983330,2.88458,3466.7,3466.1,0.268939]
[1721403983638,2.88458,3466.7,3466.2,0.02727245]
[1721403983839,3.78301731,3466.7,3465.9,2.4842]
[1721403984039,3.78301731,3466.7,3466.0,0.0273015]
[1721403984641,0.89843731,3466.6,3466.0,0.0273015]
[1721403985236,2.88481,3466.5,3466.0,0.0273015]
[1721403985592,2.88492,3466.3,3466.0,0.0273015]
[1721403985743,3.78335731,3466.3,3466.0,0.0273015]
[1721403985943,3.78335731,3466.3,3465.4,2.4418]
[1721403986641,0.89843731,3466.3,3465.4,2.4418]
[1721403987243,0.89843731,3466.2,3465.5,0.24418]
[1721403987796,3.78337731,3466.3,3465.5,0.24418]
[1721403988376,2.88494,3466.3,3465.5,0.24418]
[1721403989048,2.88501,3466.2,3465.5,0.24418]
[1721403989682,2.88492,3466.3,3465.5,0.24418]
[1721403989977,2.88492,3466.3,3465.6,0.268598]
[1721403990537,2.88509,3466.1,3465.4,2.4418]
[1721403990738,2.88522,3466.0,3465.4,2.4418]
[1721403990973,2.88525,3465.9,3465.4,2.4418]
[1721403991182,2.88535,3465.8,3464.9,2.2733]
[1721403991481,2.88548,3465.7,3464.9,2.2733]
[1721403991698,2.88548,3465.7,3465.0,0.22733]
[1721403991852,2.88535,3465.8,3465.0,0.22733]
[1721403991853,2.8853,3465.9,3465.0,0.22733]
[1721403992191,0.89843731,3466.1,3465.0,0.22733]
[1721403992342,6.78335731,3466.3,3465.1,2.88586]
[1721403992543,3.78335731,3466.3,3465.1,2.88586]
[1721403992744,3.78335731,3466.3,3465.2,0.827257]
[1721403993458,0.89843731,3466.3,3465.2,0.827257]
[1721403993660,2.88514,3466.1,3465.2,0.827257]
[1721403994095,2.88517,3466.0,3465.2,0.827257]
[1721403994245,2.88517,3466.0,3465.0,0.22733]
[1721403994586,2.88531,3465.9,3465.0,0.22733]
[1721403995196,2.88534,3465.8,3465.0,0.22733]
[1721403995448,2.88501,3466.2,3465.0,0.22733]
[1721403995589,2.88518,3466.0,3465.1,0.538673]
[1721403995931,3.78335731,3466.3,3465.1,0.538673]
[1721403996104,2.88492,3466.3,3465.1,3.424533]
[1721403996285,3.78322731,3466.5,3465.1,7.013533]
[1721403996491,2.88479,3466.5,3465.2,0.9514163]
[1721403996691,0.89843731,3466.7,3465.3,2.55060447]
[1721403996928,3.78286731,3466.9,3465.7,2.88535]
[1721403997110,2.88443,3466.9,3465.8,2.55059827]
[1721403997424,2.88451,3466.8,3465.8,2.4929]
[1721403997625,2.88451,3466.8,3465.9,0.60819]
[1721403998529,2.88459,3466.7,3465.9,0.60819]
[1721403998692,2.88469,3466.6,3465.3,2.3779]
[1721403998883,3.33043731,3466.6,3465.3,2.3779]
[1721403999108,2.88514,3466.1,3465.3,2.3779]
[1721403999807,2.88517,3466.0,3465.3,2.3779]
[1721404000135,2.88539,3465.8,3465.3,2.3779]
[1721404000437,2.88523,3466.0,3464.9,2.4877]
[1721404001304,2.88503,3466.2,3464.9,5.37375]
[1721404001505,2.88509,3466.1,3465.0,2.88594]
[1721404001736,2.88497,3466.3,3465.1,2.88591]
[1721404002064,0.89843731,3466.5,3465.2,0.537361]
[1721404002065,2.88477,3466.5,3465.2,0.537361]
[1721404002222,3.0,3466.4,3465.3,5.37769]
[1721404002617,0.89843731,3466.7,3465.4,2.88565]
[1721404002867,2.88467,3466.6,3465.4,2.88565]
[1721404003323,2.88476,3466.5,3465.3,2.492]
[1721404003650,2.88459,3466.7,3465.4,3.89377159]
[1721404004036,2.88443,3466.9,3465.6,2.88549]
[1721404004371,2.88428,3467.1,3465.9,2.88525]
[1721404004372,3.78271731,3467.1,3465.9,2.88525]
[1721404004581,2.88428,3467.1,3465.9,2.88525]
[1721404004732,0.89843731,3467.2,3466.1,2.88507]
[1721404004928,0.89843731,3467.5,3466.5,5.37675]
[1721404005144,3.78228731,3467.6,3466.5,5.37675]
[1721404005340,0.89843731,3467.6,3466.5,5.37675]
[1721404005679,3.78221731,3467.7,3466.5,5.37675]
[1721404006027,2.88378,3467.7,3466.5,5.37675]
[1721404006242,2.88378,3467.7,3466.6,0.537675]
[1721404007041,3.78221731,3467.7,3466.6,0.537675]
[1721404007225,2.88401,3467.4,3466.6,0.537675]
[1721404007455,2.88401,3467.4,3466.5,2.492]
[1721404008570,2.88423,3467.2,3466.5,2.492]
[1721404008757,2.88426,3467.1,3466.5,2.492]
[1721404009464,2.88409,3467.3,3466.5,2.492]
[1721404009631,0.89843731,3467.4,3465.8,10.21533]
[1721404009632,2.88455,3466.8,3465.9,2.3561]
[1721404010038,2.88436,3467.0,3465.9,2.3561]
[1721404010285,0.89843731,3467.1,3465.9,2.3561]
[1721404010481,4.08209642,3467.2,3465.9,5.24135]
[1721404010482,0.89843731,3467.2,3465.9,5.24135]
[1721404010634,3.78269731,3467.1,3465.9,5.24135]
[1721404010835,0.89843731,3467.2,3465.9,2.3561]
[1721404011030,2.88417,3467.2,3466.0,0.59451]
[1721404011268,2.88426,3467.1,3466.0,0.59451]
[1721404011580,2.88434,3467.0,3466.0,0.59451]
[1721404012244,0.89843731,3466.9,3466.0,0.59451]
[1721404012570,3.78277731,3467.0,3466.0,0.59451]
[1721404012890,3.78277731,3467.0,3466.1,0.295061]
[1721404013059,0.89843731,3467.0,3466.1,0.295061]
[1721404013430,0.89843731,3467.1,3466.1,3.180131]
[1721404013676,0.89843731,3467.1,3466.2,2.88499]
[1721404013882,1.19791642,3467.3,3466.2,5.9295]
[1721404013883,0.89843731,3467.3,3466.2,5.9295]
[1721404014184,0.89843731,3467.2,3466.3,0.9704131]
[1721404014544,2.88392,3467.5,3466.3,0.9704131]
[1721404014545,0.89843731,3467.1,3466.3,0.9704131]
[1721404015083,0.89843731,3467.0,3466.3,0.9704131]
[1721404015388,0.89843731,3466.9,3466.2,2.3405]
[1721404016349,0.89843731,3466.7,3466.2,2.3405]
[1721404016590,0.89843731,3466.6,3465.4,2.35]
[1721404016797,0.89843731,3466.6,3465.4,5.23566]
[1721404016798,0.89843731,3466.4,3465.4,5.23566]
[1721404017001,0.89843731,3466.3,3465.5,0.882466]
[1721404017169,0.89843731,3466.4,3465.7,2.88535]
[1721404017502,0.89843731,3466.4,3465.5,3.767966]
[1721404017716,0.89843731,3466.5,3465.5,3.767966]
[1721404017999,0.89843731,3466.5,3465.6,2.88549]
[1721404018185,0.89843731,3466.4,3465.7,0.6117956]
[1721404018396,0.89843731,3466.5,3465.8,5.7707]
[1721404018686,2.88505,3466.2,3465.8,5.7707]
[1721404018854,0.89843731,3466.1,3465.8,5.7707]
[1721404019060,3.78368731,3465.9,3465.8,5.7707]
[1721404019366,2.88525,3465.9,3465.8,5.7707]
[1721404019559,4.08316642,3465.9,3465.8,5.7707]
[1721404019756,1.19791642,3466.0,3465.8,5.7707]
[1721404020111,4.38504108,3466.0,3465.8,5.7707]
[1721404020613,0.89973402,3465.9,3465.8,5.7707]
[1721404020953,0.89973402,3466.0,3465.8,5.7707]
[1721404021258,4.08486771,3466.0,3465.8,5.7707]
[1721404021458,0.89976976,3465.9,3465.8,5.7707]
[1721404022013,0.89976976,3466.0,3465.8,5.7707]
[1721404022299,0.89976976,3465.9,3465.8,5.7707]
[1721404023153,0.89976976,3466.0,3465.8,5.7707]
[1721404023354,0.89976976,3466.1,3465.8,5.7707]
[1721404023553,0.89976976,3466.2,3465.8,6.35354057]
[1721404023911,1.49962661,3466.5,3466.0,2.2693]
[1721404023912,0.89976976,3466.3,3466.0,2.2693]
[1721404024202,0.89976976,3466.9,3466.3,2.88486]
[1721404024425,1.499739,3467.2,3466.1,8.65527]
[1721404024426,0.89976976,3467.2,3466.4,0.05768789]
[1721404024574,0.89976976,3467.3,3466.1,8.65522]
[1721404024759,0.89976976,3467.2,3466.4,2.88477]
[1721404024961,0.89976976,3467.3,3466.4,2.88481]
[1721404025230,0.89976976,3467.3,3466.6,2.88462]
[1721404025699,0.89976976,3467.3,3466.5,5.7695]
[1721404025700,0.89976976,3467.4,3466.7,2.2782]
[1721404026001,0.89976976,3467.2,3466.7,2.2782]
[1721404026159,0.89976976,3467.2,3466.8,0.80477]
[1721404026485,0.89976976,3467.3,3466.8,0.80477]
[1721404026894,0.89976976,3467.4,3466.8,0.80477]
[1721404027300,0.89976976,3467.4,3467.0,2.88433]
[1721404027472,0.89976976,3467.6,3466.9,2.88441]
[1721404027669,1.19968771,3467.8,3467.0,6.42311517]
[1721404027670,0.89976976,3467.8,3467.0,6.42311517]
[1721404027873,0.89976976,3467.9,3467.1,5.25371351]
[1721404028075,0.89976976,3468.1,3467.4,2.88399]
[1721404028259,0.89976976,3468.3,3467.4,2.88399]
[1721404028485,0.89976976,3468.3,3467.5,0.865229]
[1721404028795,0.89976976,3468.6,3468.0,2.8835]
[1721404028998,0.89976976,3468.8,3468.1,2.8834]
[1721404029198,3.33443112,3469.4,3468.1,2.8834]
[1721404029199,0.89976976,3468.9,3468.1,8.6502]
[1721404029503,0.89976976,3469.1,3468.1,8.6502]
[1721404029666,0.89976976,3469.0,3468.2,1.384558]
[1721404030262,0.89976976,3469.1,3468.2,1.384558]